{"text_format":"1","workbook":"xlsx","n_sheets":5,"sheets":["CRONOGRAMA FISICO-FINANCEIRO","CONFER.","PLANILHA ORÇAMENTÁRIA","COMPOSIÇÃO DO BDI","COMPOSIÇÃO DO BDI REDUZIDO"],"not_rendered":{"charts":0,"images":1,"macros":1,"external_links":1,"defined_names":71,"comments":0,"pivot_tables":0},"unopened":[],"bounds":{"document_bytes":16777216,"sheet_cells":100000,"rows_first":2000,"rows_last":500,"rows_between":2000,"halvings":0,"cell_chars":16384,"cell_head_chars":4096},"cells_cut":0,"cells_raw":0,"read":"whole","date_system":"1900"}

{"sheet":"CRONOGRAMA FISICO-FINANCEIRO","index":0,"n_rows":25,"n_cols":12,"rows_kept":25,"cut":false,"hidden":false,"merged":[[0,0,2,1],[0,10,1,11],[4,0,4,2],[0,2,2,9],[3,0,3,11],[4,3,4,10],[10,8,10,9],[5,0,5,2],[5,3,5,6],[6,0,6,2],[7,0,8,11],[10,0,11,0],[10,1,11,1],[10,2,10,3],[10,4,10,5],[10,6,10,7],[10,10,10,11]]}
[null,null,"CRONOGRAMA FÍSICO FINANCEIRO",null,null,null,null,null,null,null,"UNAEN-FF-003"]
[]
[null,null,null,null,null,null,null,null,null,null,"Revisão:\n00","Data:\n11/05/2017"]
["SENAI - SERVIÇO NACIONAL DE APRENDIZAGEM INDUSTRIAL - DR/MT"]
[{"$f":"'PLANILHA ORÇAMENTÁRIA'!A7:F7","v":"UNIDADE OPERACIONAL: SENAI BARRA DO BUGRES "},null,null,"ENDEREÇO: AV. TABATINGA ESQUINA COM RUA PLANALTO,                     CIDADE: BARRA DO BUGRES-MT"]
["CONSTRUTORA:                                                                           ",null,null,{"$f":"CONCATENATE(\" VALOR: \",\"R$ \",TEXT(SUM(C24),\"#.##0,00\"))","v":" VALOR: R$ 532.826,89"},null,null,null,"PRAZO: 03 MESES"]
["RESPONSÁVEL TÉCNICO:"]
[{"$f":"'[1]1_IMPLANTAÇÃO'!B14","v":"IMPLANTAÇÃO"}]
[]
[]
["ITEM","DESCRIÇÃO","ETAPA TOTAL",null,"1 MÊS",null,"2 MESES",null,"3 MESES",null,"TOTAL "]
[null,null,"(R$)","(%)","(R$)","(%)","(R$)","(%)","(R$)","(%)","(R$)","(%)"]
[{"$f":"'PLANILHA ORÇAMENTÁRIA'!A14","v":"1.0"},{"$f":"'PLANILHA ORÇAMENTÁRIA'!B14","v":"ADMINISTRAÇÃO DE OBRAS"},{"$f":"'PLANILHA ORÇAMENTÁRIA'!$F$14","v":42832.26},{"$f":"C13/$C$24*100","v":8.0386821318270929},{"$f":"F13*$C13/100","v":14562.968400000002},34,{"$f":"H13*$C13/100","v":14134.6458},33,{"$f":"J13*$C13/100","v":14134.6458},33,{"$f":"L13*$C13/100","v":42832.26},{"$f":"F13+H13+J13","v":100}]
[{"$f":"'PLANILHA ORÇAMENTÁRIA'!A20","v":"1.1"},{"$f":"'PLANILHA ORÇAMENTÁRIA'!B20","v":"INSTALAÇÃO DE CANTEIRO DE OBRA"},{"$f":"'PLANILHA ORÇAMENTÁRIA'!$F$20","v":4542.28},0.85248700567645896,3315.8643999999999,73,635.91919999999993,14,590.49639999999999,13,4542.28,{"$f":"F14+H14+J14","v":100}]
[{"$f":"'PLANILHA ORÇAMENTÁRIA'!A25","v":"1.2"},{"$f":"'PLANILHA ORÇAMENTÁRIA'!B25","v":"DEMOLIÇÃO E REMOÇÃO DE FORRO PLATIBANDA, FORRO E LUMINÁRIA DOS BLOCOS A, B, C, D E PASSARELAS DE ACESSO ENTRE OS BLOCOS"},{"$f":"'PLANILHA ORÇAMENTÁRIA'!$F$25","v":6519.68},1.2236019094306596,6519.68,100,0,0,0,0,6519.68,100]
[{"$f":"'PLANILHA ORÇAMENTÁRIA'!A32","v":"1.3"},{"$f":"'PLANILHA ORÇAMENTÁRIA'!B32","v":"FORRO DE PVC 25 CM DE LARGURA PARA OS BEIRAIS E ÁREAS DE CONVIVÊNCIA"},{"$f":"'PLANILHA ORÇAMENTÁRIA'!$F$32","v":118833.92999999998},22.302539948762718,59416.964999999989,50,59416.964999999989,50,0,0,118833.92999999998,100]
[{"$f":"'PLANILHA ORÇAMENTÁRIA'!A39","v":"1.4"},{"$f":"'PLANILHA ORÇAMENTÁRIA'!B39","v":"EXECUÇÃO DE PLATIBANDA DOS BLOCOS A, B, C, D E LATERAIS DAS PASSARELAS DE ACESSO ENTRE OS BLOCOS"},{"$f":"'PLANILHA ORÇAMENTÁRIA'!$F$39","v":219004.77000000002},41.102424466603033,109502.38499999999,50,109502.38499999999,50,0,0,219004.77,100]
[{"$f":"'PLANILHA ORÇAMENTÁRIA'!A47","v":"1.5"},{"$f":"'PLANILHA ORÇAMENTÁRIA'!B47","v":"ABERTURA DE CALHA E DESCIDAS VERTICAIS DOS BLOCO A, B, C E D"},{"$f":"'PLANILHA ORÇAMENTÁRIA'!$F$47","v":36735.68},6.8944868754653124,18367.84,50,18367.84,50,0,0,36735.68,100]
[{"$f":"'PLANILHA ORÇAMENTÁRIA'!A57","v":"1.6"},{"$f":"'PLANILHA ORÇAMENTÁRIA'!B57","v":"MANUTENÇÃO/IMPERMEABILIZAÇÃO DE CALHAS DOS BLOCOS A, B, C E D"},{"$f":"'PLANILHA ORÇAMENTÁRIA'!$F$57","v":77831.44},14.607265785703872,0,0,58373.58,75,19457.86,25,77831.44,100]
[{"$f":"'PLANILHA ORÇAMENTÁRIA'!A63","v":"1.7"},{"$f":"'PLANILHA ORÇAMENTÁRIA'!B63","v":"SERVIÇOS COMPLEMENTARES"},{"$f":"'PLANILHA ORÇAMENTÁRIA'!$F$63","v":4488.28},0.84235238202786644,1526.0151999999998,34,1481.1324,33,1481.1324,33,4488.28,100]
[{"$f":"'PLANILHA ORÇAMENTÁRIA'!A66","v":"1.8"},{"$f":"'PLANILHA ORÇAMENTÁRIA'!B66","v":"PINTURA DA PLATIBANDA METÁLICA"},{"$f":"'PLANILHA ORÇAMENTÁRIA'!$F$66","v":19376.97},3.6366351555568075,0,0,14532.727500000001,75,4844.2425000000003,25,19376.97,100]
[{"$f":"'PLANILHA ORÇAMENTÁRIA'!A70","v":"1.9"},{"$f":"'PLANILHA ORÇAMENTÁRIA'!B70","v":"ELÉTRICA"},{"$f":"'PLANILHA ORÇAMENTÁRIA'!$F$70","v":2138.4},0.40133109648426335,1069.2,50,0,0,1069.2,50,2138.4,100]
[{"$f":"'PLANILHA ORÇAMENTÁRIA'!A73","v":"1.10"},{"$f":"'PLANILHA ORÇAMENTÁRIA'!B73","v":"LIMPEZA CONTÍNUA DA OBRA"},{"$f":"'PLANILHA ORÇAMENTÁRIA'!$F$73","v":523.20000000000005},9.8193242461918559E-2,177.88800000000003,34,172.65600000000003,33,172.65600000000003,33,523.20000000000005,100]
[null,"TOTAL",{"$f":"ROUND(SUM(C13:C23),2)","v":532826.89},{"$f":"SUM(D13:D23)","v":100.00000000000001},{"$f":"SUM(E13:E23)","v":214458.80600000001},{"$f":"E24/$C24*100","v":40.249246054379881},{"$f":"SUM(G13:G23)","v":276617.85089999996},{"$f":"G24/$C24*100","v":51.915144691740302},{"$f":"SUM(I13:I23)","v":41750.233100000005},{"$f":"I24/$C24*100","v":7.8356092538798121},{"$f":"SUM(K13:K23)","v":532826.8899999999},{"$f":"K24/$C24*100","v":99.999999999999972}]
[null,"TOTAL ACUMULADO",null,null,{"$f":"E24","v":214458.80600000001},{"$f":"E25/$C24*100","v":40.249246054379881},{"$f":"G24+E25","v":491076.65689999994},{"$f":"G25/$C24*100","v":92.164390746120176},{"$f":"I24+G25","v":532826.8899999999},{"$f":"I25/$C24*100","v":99.999999999999972}]

{"sheet":"CONFER.","index":1,"n_rows":63,"n_cols":7,"rows_kept":63,"cut":false,"hidden":true,"merged":[]}
["ITEM","DESCRIÇÃO","UNID.","QUANT.","Valor UNIT. (R$)","Valor Total (R$)"]
["1.0.1","ENGENHEIRO CIVIL DE OBRA JUNIOR COM ENCARGOS COMPLEMENTARES \nCONSIDERANDO 02H/DIA X 03 DIAS NA SEMANA X 3 MESES","H",72,114.73,8260.56,{"$f":"IF(AND(B2=B3,ROUND(E2,2)=ROUND(E3,2)),\"OK\",IF(AND(B2<>B3,E2<>E3),\"OK\",IF(AND(B2=B3,E2<>E3),\"ANALISAR\",IF(ROUND(E2,2)=ROUND(E3,2),\"ANALISAR TEXTO\",\"\"))))","v":"OK"}]
["1.5.1","TELHADISTA COM ENCARGOS COMPLEMENTARES PARA FINS DE ABERTURA DE PONTOS DE DRENOS DE CALHA.","H",24,26.83,643.91999999999996,{"$f":"IF(AND(B3=B4,ROUND(E3,2)=ROUND(E4,2)),\"OK\",IF(AND(B3<>B4,E3<>E4),\"OK\",IF(AND(B3=B4,E3<>E4),\"ANALISAR\",IF(ROUND(E3,2)=ROUND(E4,2),\"ANALISAR TEXTO\",\"\"))))","v":"OK"}]
["1.10.1","LIMPEZA FINAL DE OBRA","H",24,21.8,523.20000000000005,"OK"]
["1.1.3","GUARDA-CORPO FIXADO EM FÔRMA DE MADEIRA COM TRAVESSÕES EM MADEIRA PREGADA E FECHAMENTO EM TELA DE POLIPROPILENO PARA EDIFICAÇÕES COM ATÉ 2 PAVIMENTOS. AF_11/2017","M",13,74.760000000000005,971.88,"OK"]
["1.3.5","ACABAMENTOS PARA FORRO (RODA-FORRO EM PERFIL METÁLICO E PLÁSTICO). AF_05/2017 TODOS OS BLOCOS","M",1045.26,14.45,15104.01,"OK"]
["1.5.2","FIXAÇÃO DE TUBOS VERTICAIS DE PPR DIÂMETROS MAIORES QUE 75 MM COM ABRAÇADEIRA METÁLICA RÍGIDA TIPO D 3\", FIXADA EM PERFILADO EM ALVENARIA. AF_05/2015","M",171.53,6.18,1060.06,"OK"]
["1.5.8","CONDUTOR EM CHAPA DE CALHA DIMENSÕES 15X15 EXECUÇÃO BOCA TIPO FUNIL","M",109.5,131.94,14447.43,"OK"]
["1.5.3","TUBO PVC, SERIE R, DN 100 MM, PARA ESGOTO OU AGUAS PLUVIAIS PREDIAIS (NBR 5688)                                                                                                                                                                                                                                                                                                                                                                                                                           ","M     ",114.38,62.86,7189.93,"OK"]
["1.5.4","TUBO PVC, SERIE R, DN 150 MM, PARA ESGOTO OU AGUAS PLUVIAIS PREDIAIS (NBR 5688)                                                                                                                                                                                                                                                                                                                                                                                                                           ","M     ",57.15,127.77,7302.06,"OK"]
["1.2.1","PLATIBANDA - REMOÇÃO DE CHAPAS E PERFIS DE DRYWALL, DE FORMA MANUAL, SEM REAPROVEITAMENTO. AF_12/2017","M2",585.23,7.41,4336.55,"OK"]
["1.2.2","FORRO - REMOÇÃO DE FORROS DE DRYWALL, PVC E FIBROMINERAL, DE FORMA MANUAL, SEM REAPROVEITAMENTO. AF_12/2017","M2",952,1.6,1523.2,"OK"]
["1.4.1","BLOCO A - PLATIBANDA EM CHAPA DE AÇO ESPESSURA 2,00mm, H=1600mm, DOBRA CARTOLA: 30X20X970mm, COM METALON DIM. 50X20X0,97mm NA FACE INFERIOR PARA ARREMATE COM O FORRO, FUNDO ANTICORROSIVO EM PRIMER EPÓXI NAS DUAS FACES","M2",121.45,374.22,45449.02,"ANALISAR TEXTO"]
["1.4.2","PASSARELA ENTRE BLOCO A E B PLATIBANDA EM CHAPA DE AÇO ESPESSURA 2,00mm, H=1600mm, DOBRA CARTOLA: 30X20X970mm, COM METALON DIM. 50X20X0,97mm NA FACE INFERIOR PARA ARREMATE COM O FORRO, FUNDO ANTICORROSIVO EM PRIMER EPÓXI NAS DUAS FACES","M2",17.600000000000001,374.22,6586.27,"ANALISAR TEXTO"]
["1.4.3","BLOCO B - PLATIBANDA EM CHAPA DE AÇO ESPESSURA 2,00mm, H=1600mm, DOBRA CARTOLA: 30X20X970mm, COM METALON DIM. 50X20X0,97mm NA FACE INFERIOR PARA ARREMATE COM O FORRO, FUNDO ANTICORROSIVO EM PRIMER EPÓXI NAS DUAS FACES","M2",204.6,374.22,76565.41,"ANALISAR TEXTO"]
["1.4.4","PASSARELA ENTRE BLOCO B E C PLATIBANDA EM CHAPA DE AÇO ESPESSURA 2,00mm, H=1600mm, DOBRA CARTOLA: 30X20X970mm, COM METALON DIM. 50X20X0,97mm NA FACE INFERIOR PARA ARREMATE COM O FORRO, FUNDO ANTICORROSIVO EM PRIMER EPÓXI NAS DUAS FACES","M2",18.8,374.22,7035.34,"ANALISAR TEXTO"]
["1.4.5","BLOCO C - PLATIBANDA EM CHAPA DE AÇO ESPESSURA 2,00mm, H=1600mm, DOBRA CARTOLA: 30X20X970mm, COM METALON DIM. 50X20X0,97mm NA FACE INFERIOR PARA ARREMATE COM O FORRO, FUNDO ANTICORROSIVO EM PRIMER EPÓXI NAS DUAS FACES","M2",96.24,374.22,36014.93,"ANALISAR TEXTO"]
["1.4.6","BLOCO D - PLATIBANDA EM CHAPA DE AÇO ESPESSURA 2,00mm, H=1600mm, DOBRA CARTOLA: 30X20X970mm, COM METALON DIM. 50X20X0,97mm NA FACE INFERIOR PARA ARREMATE COM O FORRO, FUNDO ANTICORROSIVO EM PRIMER EPÓXI NAS DUAS FACES","M2",126.54,374.22,47353.8,"OK"]
["1.6.1","LIMPEZA DE SUPERFÍCIE COM VASSOURA A SECO. AF_04/2019","M2",367.32,0.54,198.35,"OK"]
["1.6.2","LIMPEZA DE SUPERFÍCIE COM JATO DE ALTA PRESSÃO. AF_04/2019","M2",367.32,2.02,741.99,"OK"]
["1.6.3","PINTURA COM TINTA ALQUÍDICA DE FUNDO (TIPO ZARCÃO) APLICADA A ROLO OU PINCEL SOBRE SUPERFÍCIES METÁLICAS (EXCETO PERFIL) EXECUTADO EM OBRA (POR DEMÃO). AF_01/2020","M2",367.32,24.56,9021.3799999999992,"OK"]
["1.6.4","IMPERMEABILIZAÇÃO DE SUPERFÍCIE COM MEMBRANA À BASE DE POLIURETANO, 2 DEMÃOS. AF_06/2018","M2",367.32,184.77,67869.72,"OK"]
["1.8.1","TEXTURA ACRÍLICA, APLICAÇÃO MANUAL EM PAREDE, UMA DEMÃO. AF_09/2016","M2",585.23,15.64,9153,"OK"]
["1.8.2","APLICAÇÃO MANUAL DE PINTURA COM TINTA LÁTEX ACRÍLICA EM PAREDES, DUAS DEMÃOS. AF_06/2014","M2",585.23,17.47,10223.969999999999,"OK"]
["1.8.3","PINTURA COM TINTA ALQUÍDICA DE ACABAMENTO (ESMALTE SINTÉTICO ACETINADO) PULVERIZADA SOBRE SUPERFÍCIES METÁLICAS (EXCETO PERFIL) EXECUTADO EM OBRA (POR DEMÃO). AF_01/2020_P","M2",585.23,25.07,14671.72,"OK"]
["1.3.1","BLOCO A - FORRO EM RÉGUAS DE PVC, LISO, 25CM, JUNTASECA, PARA AMBIENTES RESIDENCIAIS, INCLUSIVE ESTRUTURA DE FIXAÇÃO","M²",178,108.96,19394.88,"ANALISAR TEXTO"]
["1.3.2","BLOCO B - FORRO EM RÉGUAS DE PVC, LISO, 25CM, JUNTASECA, PARA AMBIENTES RESIDENCIAIS, INCLUSIVE ESTRUTURA DE FIXAÇÃO","M²",362,108.96,39443.519999999997,"ANALISAR TEXTO"]
["1.3.3","BLOCO C - FORRO EM RÉGUAS DE PVC, LISO, 25CM, JUNTASECA, PARA AMBIENTES RESIDENCIAIS, INCLUSIVE ESTRUTURA DE FIXAÇÃO","M²",251,108.96,27348.959999999999,"ANALISAR TEXTO"]
["1.3.4","BLOCO D - FORRO EM RÉGUAS DE PVC, LISO, 25CM, JUNTASECA, PARA AMBIENTES RESIDENCIAIS, INCLUSIVE ESTRUTURA DE FIXAÇÃO","M²",161,108.96,17542.560000000001,"OK"]
["1.1.2","PLACA DE OBRA (PARA CONSTRUCAO CIVIL) EM CHAPA GALVANIZADA *N. 22*, ADESIVADA, DE *2,4 X 1,2* M (SEM POSTES PARA FIXACAO)                                                                                                                                                                                                                                                                                                                                                                                 ","M2    ",3.13,544.46,1704.16,"OK"]
["1.1.1","LOCACAO DE ANDAIME METALICO TIPO FACHADEIRO, LARGURA DE 1,20 M, ALTURA POR PECA DE 2,0 M, INCLUINDO SAPATAS E ITENS NECESSARIOS A INSTALACAO","M2XMES",216,8.64,1866.24,"OK"]
["1.2.5","CARGA, MANOBRA E DESCARGA DE ENTULHO EM CAMINHÃO BASCULANTE 14 M³ - CARGA COM ESCAVADEIRA HIDRÁULICA  (CAÇAMBA DE 0,80 M³ / 111 HP) E DESCARGA LIVRE (UNIDADE: M3). AF_07/2020","M3",11.990394000000002,10.67,127.94,"OK"]
["1.0.2","ENCARREGADO GERAL DE OBRAS COM ENCARGOS COMPLEMENTARES","MES",3,5515.46,16546.38,"OK"]
["1.0.3","TECNICO EM SEGURANCA DO TRABALHO (MENSALISTA)      ","MES",3,5913.03,17739.09,"OK"]
["1.2.4","TRANSPORTE COM CAMINHÃO CARROCERIA 9T, EM VIA URBANA PAVIMENTADA, ADICIONAL PARA DMT EXCEDENTE A 30 KM (UNIDADE: TXKM). AF_07/2020","TXKM",276.7,1.0900000000000001,301.60000000000002,"OK"]
["1.7.1","TAXA CREA","UN",1,286.23,286.23,"OK"]
["1.2.3","REMOÇÃO DE LUMINÁRIAS, DE FORMA MANUAL, COM REAPROVEITAMENTO. AF_12/2017","UN",180,1.28,230.4,"OK"]
["1.5.5","JOELHO 45 GRAUS, PVC, SERIE R, ÁGUA PLUVIAL, DN 100 MM, JUNTA ELÁSTICA, FORNECIDO E INSTALADO EM RAMAL DE ENCAMINHAMENTO. AF_06/2022","UN",71,61.08,4336.68,"OK"]
["1.5.6","JUNÇÃO SIMPLES DE PVC, 45 GRAUS, SÉRIE NORMAL, PARA ESGOTO PREDIAL, DN 100 MM, INSTALADA EM DRENO - FORNECIMENTO E INSTALAÇÃO. AF_07/2021","UN",20,73.150000000000006,1463,"OK"]
["1.5.7","JUNÇÃO SIMPLES DE PVC, 45 GRAUS, SÉRIE NORMAL, PARA ESGOTO PREDIAL, DN 100 MM, INSTALADA EM DRENO - FORNECIMENTO E INSTALAÇÃO. AF_07/2021","UN",4,73.150000000000006,292.60000000000002,"OK"]
["1.7.1","FORNECIMENTO E MONTAGEM DE LINHA DE VIDA HORIZONTAL EM CABO DE AÇO INOX DIÂM. 9,53 MM, PERFIL 6 X 25, INCLUSIVE ACESSÓRIOS DE FIXAÇÃO","UN",1,4488.28,4488.28,"OK"]
["1.9.1","INSTALAÇÃO DE LUMINÁRIA TIPO CALHA, DE EMBUTIR, COM 2 LÂMPADAS TUBULARES","UN",180,11.88,2138.4,"OK"]
["1.0","ADMINISTRAÇÃO DE OBRAS",null,null,null,42832.26,"ANALISAR TEXTO"]
[null,null,null,null,null,null,"ANALISAR TEXTO"]
["1.1","INSTALAÇÃO DE CANTEIRO DE OBRA",null,null,null,4542.28,"ANALISAR TEXTO"]
[null,null,null,null,null,null,"ANALISAR TEXTO"]
["1.2","DEMOLIÇÃO E REMOÇÃO DE FORRO PLATIBANDA, FORRO E LUMINÁRIA DOS BLOCOS A, B, C, D E PASSARELAS DE ACESSO ENTRE OS BLOCOS",null,null,null,6519.69,"ANALISAR TEXTO"]
[null,null,null,null,null,null,"ANALISAR TEXTO"]
["1.3","FORRO DE PVC 25 CM DE LARGURA PARA OS BEIRAIS E ÁREAS DE CONVIVÊNCIA",null,null,null,118833.92999999998,"ANALISAR TEXTO"]
[null,null,null,null,null,null,"ANALISAR TEXTO"]
["1.4","EXECUÇÃO DE PLATIBANDA DOS BLOCOS A, B, C, D E LATERAIS DAS PASSARELAS DE ACESSO ENTRE OS BLOCOS",null,null,null,219004.77000000002,"ANALISAR TEXTO"]
[null,null,null,null,null,null,"ANALISAR TEXTO"]
["1.5","ABERTURA DE CALHA E DESCIDAS VERTICAIS DOS BLOCO A, B, C E D",null,null,null,36735.68,"ANALISAR TEXTO"]
[null,null,null,null,null,null,"ANALISAR TEXTO"]
["1.6","MANUTENÇÃO/IMPERMEABILIZAÇÃO DE CALHAS DOS BLOCOS A, B, C E D",null,null,null,77831.44,"ANALISAR TEXTO"]
[null,null,null,null,null,null,"ANALISAR TEXTO"]
["1.7","SERVIÇOS COMPLEMENTARES",null,null,null,4488.28,"ANALISAR TEXTO"]
[null,null,null,null,null,null,"ANALISAR TEXTO"]
["1.8","PINTURA",null,null,null,34048.69,"ANALISAR TEXTO"]
[null,null,null,null,null,null,"ANALISAR TEXTO"]
["1.9","ELÉTRICA",null,null,null,2138.4,"ANALISAR TEXTO"]
[null,null,null,null,null,null,"ANALISAR TEXTO"]
["1.10","LIMPEZA CONTÍNUA DA OBRA",null,null,null,523.20000000000005,"ANALISAR TEXTO"]

{"sheet":"PLANILHA ORÇAMENTÁRIA","index":2,"n_rows":76,"n_cols":14,"rows_kept":76,"cut":false,"hidden":false,"merged":[[5,0,5,5],[6,0,6,5],[7,0,7,5],[8,0,8,5],[0,0,3,2],[0,3,1,5],[2,3,3,3],[2,4,3,4],[2,5,3,5],[4,0,4,5]]}
["                                 PLANILHA ORÇAMENTARIA   ",null,null,"SPN-FF-003",null,null,null,null,null,null,null,"C:\\Users\\alexandre.seba\\Desktop\\EM TELA\\BBU - 2022\\PLANILHA ORÇAMENTÁRIA\\SINAPI 07-2022.xlsx"]
[]
[null,null,null,"Folha:              1 de 1","Revisão:      \n02","Data: \n07/10/19"]
[]
["SENAI - SERVIÇO NACIONAL DE APRENDIZAGEM INDUSTRIAL - DR/MT"]
["OBRA: CONTRATAÇÃO DE EMPRESA DE ENGENHARIA PARA A EXECUÇÃO DE REFORMA DE PLATIBANDA, FORRO E IMPERMEABILIZAÇÃO E ABERTURA DE PONTOS DE DRENO DE CALHA DOS BLOCOS A, B, C E D DA UNIDADE DO SENAI BARRA DO BUGRES."]
["UNIDADE OPERACIONAL: SENAI BARRA DO BUGRES "]
["ENDEREÇO: AV. TABATINGA ESQUINA COM RUA PLANALTO CIDADE: BARRA DO BUGRES-MT"]
["CONSTRUTORA:",null,null,null,null,null,null,"BDI DIFERENCIADO:",{"$f":"BDI_EQUI","v":0.14610000000000001}]
["RESPONSÁVEL TÉCNICO:",null,null,"REF.:",{"$f":"LEFT(RIGHT(CAMINHO_DO_BD,19),14)","v":"SINAPI 07-2022"},null,null,"BDI:",{"$f":"BDI","v":0.2235},"SINAPI REF.",{"$f":"LEFT(RIGHT(CAMINHO_DO_BD,12),7)","v":"07-2022"}]
[]
["ITEM","DESCRIÇÃO","UNID.","QUANT.","Valor UNIT. (R$)","Valor Total (R$)",null,"CÓDIGO","ORIGEM/OBSERVAÇÃO","Valor Unit. (R$) SEM BDI","Valor Unit. (R$)\nC/ BDI",null,"TIPO DO ITEM","TIPO DO BDI"]
[]
["1.0","ADMINISTRAÇÃO DE OBRAS",null,null,null,{"$f":"SUBTOTAL(9,F15:F19)","v":42832.26}]
["1.0.1","ENGENHEIRO CIVIL DE OBRA JUNIOR COM ENCARGOS COMPLEMENTARES \nCONSIDERANDO 02H/DIA X 03 DIAS NA SEMANA X 4 SEMANAS X 3 MESES","H",72,{"$f":"K15","v":114.73},{"$f":"ROUND(D15*E15,2)","v":8260.56},null,"90777",{"$f":"IF(M15=\"COMPOSIÇÃO\",LEFT(RIGHT(CAMINHO_DO_BD,19),14),IF(M15=\"INSUMO\",\"INSUMO \" & LEFT(RIGHT(CAMINHO_DO_BD,19),14),IF(M15=\"COMPOSIÇÃO PRÓPRIA\",\"COMPOSIÇÃO PRÓPRIA COM BASE NA \" & LEFT(RIGHT(CAMINHO_DO_BD,19),14),\"PREÇO MÉDIO DE ORÇAMENTOS\")))","v":"SINAPI 07-2022"},93.77,{"$f":"ROUND(J15*(1+BDI),2)","v":114.73},null,"COMPOSIÇÃO","BDI DE OBRA"]
["1.0.2","ENCARREGADO GERAL DE OBRAS COM ENCARGOS COMPLEMENTARES","MES",3,{"$f":"K16","v":5515.46},{"$f":"ROUND(D16*E16,2)","v":16546.38},null,"93572",{"$f":"IF(M16=\"COMPOSIÇÃO\",LEFT(RIGHT(CAMINHO_DO_BD,19),14),IF(M16=\"INSUMO\",\"INSUMO \" & LEFT(RIGHT(CAMINHO_DO_BD,19),14),IF(M16=\"COMPOSIÇÃO PRÓPRIA\",\"COMPOSIÇÃO PRÓPRIA COM BASE NA \" & LEFT(RIGHT(CAMINHO_DO_BD,19),14),\"PREÇO MÉDIO DE ORÇAMENTOS\")))","v":"SINAPI 07-2022"},4507.9399999999996,{"$f":"ROUND(J16*(1+BDI),2)","v":5515.46},null,"COMPOSIÇÃO","BDI DE OBRA"]
["1.0.3","TECNICO EM SEGURANCA DO TRABALHO (MENSALISTA)      ","MES",3,{"$f":"K17","v":5913.03},{"$f":"ROUND(D17*E17,2)","v":17739.09},null,"C_CIV0303",{"$f":"IF(M17=\"COMPOSIÇÃO\",LEFT(RIGHT(CAMINHO_DO_BD,19),14),IF(M17=\"INSUMO\",\"INSUMO \" & LEFT(RIGHT(CAMINHO_DO_BD,19),14),IF(M17=\"COMPOSIÇÃO PRÓPRIA\",\"COMPOSIÇÃO PRÓPRIA COM BASE NA \" & LEFT(RIGHT(CAMINHO_DO_BD,19),14),\"PREÇO MÉDIO DE ORÇAMENTOS\")))","v":"COMPOSIÇÃO PRÓPRIA COM BASE NA SINAPI 07-2022"},4832.88,{"$f":"ROUND(J17*(1+BDI),2)","v":5913.03},null,"COMPOSIÇÃO PRÓPRIA","BDI DE OBRA"]
["1.0.4","ANOTAÇÃO DE RESPONSABILIDADE TECNICA","UN",1,286.23,{"$f":"ROUND(D18*E18,2)","v":286.23},null,"C_CIV0304",{"$f":"IF(M18=\"COMPOSIÇÃO\",LEFT(RIGHT(CAMINHO_DO_BD,19),14),IF(M18=\"INSUMO\",\"INSUMO \" & LEFT(RIGHT(CAMINHO_DO_BD,19),14),IF(M18=\"COMPOSIÇÃO PRÓPRIA\",\"COMPOSIÇÃO PRÓPRIA COM BASE NA \" & LEFT(RIGHT(CAMINHO_DO_BD,19),14),\"PREÇO MÉDIO DE ORÇAMENTOS\")))","v":"COMPOSIÇÃO PRÓPRIA COM BASE NA SINAPI 07-2022"},233.94,{"$f":"ROUND(J18*(1+BDI),2)","v":286.23},null,"COMPOSIÇÃO PRÓPRIA","BDI DE OBRA"]
[]
["1.1","INSTALAÇÃO DE CANTEIRO DE OBRA",null,null,null,{"$f":"SUBTOTAL(9,F21:F24)","v":4542.28}]
["1.1.1","LOCACAO DE ANDAIME METALICO TIPO FACHADEIRO, LARGURA DE 1,20 M, ALTURA POR PECA DE 2,0 M, INCLUINDO SAPATAS E ITENS NECESSARIOS A INSTALACAO","M2XMES",216,{"$f":"K21","v":8.64},{"$f":"ROUND(D21*E21,2)","v":1866.24},null,20193,{"$f":"IF(M21=\"COMPOSIÇÃO\",LEFT(RIGHT(CAMINHO_DO_BD,19),14),IF(M21=\"INSUMO\",\"INSUMO \" & LEFT(RIGHT(CAMINHO_DO_BD,19),14),IF(M21=\"COMPOSIÇÃO PRÓPRIA\",\"COMPOSIÇÃO PRÓPRIA COM BASE NA \" & LEFT(RIGHT(CAMINHO_DO_BD,19),14),\"PREÇO MÉDIO DE ORÇAMENTOS\")))","v":"INSUMO SINAPI 07-2022"},7.06,{"$f":"ROUND(J21*(1+BDI),2)","v":8.64},null,"INSUMO","BDI DE OBRA"]
["1.1.2","PLACA DE OBRA (PARA CONSTRUCAO CIVIL) EM CHAPA GALVANIZADA *N. 22*, ADESIVADA, DE *2,4 X 1,2* M (SEM POSTES PARA FIXACAO)                                                                                                                                                                                                                                                                                                                                                                                 ","M2    ",3.13,{"$f":"K22","v":544.46},{"$f":"ROUND(D22*E22,2)","v":1704.16},null,4813,{"$f":"IF(M22=\"COMPOSIÇÃO\",LEFT(RIGHT(CAMINHO_DO_BD,19),14),IF(M22=\"INSUMO\",\"INSUMO \" & LEFT(RIGHT(CAMINHO_DO_BD,19),14),IF(M22=\"COMPOSIÇÃO PRÓPRIA\",\"COMPOSIÇÃO PRÓPRIA COM BASE NA \" & LEFT(RIGHT(CAMINHO_DO_BD,19),14),\"PREÇO MÉDIO DE ORÇAMENTOS\")))","v":"INSUMO SINAPI 07-2022"},445,{"$f":"ROUND(J22*(1+BDI),2)","v":544.46},null,"INSUMO","BDI DE OBRA"]
["1.1.3","GUARDA-CORPO FIXADO EM FÔRMA DE MADEIRA COM TRAVESSÕES EM MADEIRA PREGADA E FECHAMENTO EM TELA DE POLIPROPILENO PARA EDIFICAÇÕES COM ATÉ 2 PAVIMENTOS. AF_11/2017","M",13,{"$f":"K23","v":74.760000000000005},{"$f":"ROUND(D23*E23,2)","v":971.88},null,"97010",{"$f":"IF(M23=\"COMPOSIÇÃO\",LEFT(RIGHT(CAMINHO_DO_BD,19),14),IF(M23=\"INSUMO\",\"INSUMO \" & LEFT(RIGHT(CAMINHO_DO_BD,19),14),IF(M23=\"COMPOSIÇÃO PRÓPRIA\",\"COMPOSIÇÃO PRÓPRIA COM BASE NA \" & LEFT(RIGHT(CAMINHO_DO_BD,19),14),\"PREÇO MÉDIO DE ORÇAMENTOS\")))","v":"SINAPI 07-2022"},61.1,{"$f":"ROUND(J23*(1+BDI),2)","v":74.760000000000005},null,"COMPOSIÇÃO","BDI DE OBRA"]
[]
["1.2","DEMOLIÇÃO E REMOÇÃO DE FORRO PLATIBANDA, FORRO E LUMINÁRIA DOS BLOCOS A, B, C, D E PASSARELAS DE ACESSO ENTRE OS BLOCOS",null,null,null,{"$f":"SUBTOTAL(9,F26:F31)","v":6519.68}]
["1.2.1","PLATIBANDA - REMOÇÃO DE CHAPAS E PERFIS DE DRYWALL, DE FORMA MANUAL, SEM REAPROVEITAMENTO. AF_12/2017","M2",585.23,{"$f":"K26","v":7.41},{"$f":"ROUND(D26*E26,2)","v":4336.55},null,"97638",{"$f":"IF(M26=\"COMPOSIÇÃO\",LEFT(RIGHT(CAMINHO_DO_BD,19),14),IF(M26=\"INSUMO\",\"INSUMO \" & LEFT(RIGHT(CAMINHO_DO_BD,19),14),IF(M26=\"COMPOSIÇÃO PRÓPRIA\",\"COMPOSIÇÃO PRÓPRIA COM BASE NA \" & LEFT(RIGHT(CAMINHO_DO_BD,19),14),\"PREÇO MÉDIO DE ORÇAMENTOS\")))","v":"SINAPI 07-2022"},6.06,{"$f":"ROUND(J26*(1+BDI),2)","v":7.41},null,"COMPOSIÇÃO","BDI DE OBRA"]
["1.2.2","FORRO - REMOÇÃO DE FORROS DE DRYWALL, PVC E FIBROMINERAL, DE FORMA MANUAL, SEM REAPROVEITAMENTO. AF_12/2017","M2",952,{"$f":"K27","v":1.6},{"$f":"ROUND(D27*E27,2)","v":1523.2},null,"97640",{"$f":"IF(M27=\"COMPOSIÇÃO\",LEFT(RIGHT(CAMINHO_DO_BD,19),14),IF(M27=\"INSUMO\",\"INSUMO \" & LEFT(RIGHT(CAMINHO_DO_BD,19),14),IF(M27=\"COMPOSIÇÃO PRÓPRIA\",\"COMPOSIÇÃO PRÓPRIA COM BASE NA \" & LEFT(RIGHT(CAMINHO_DO_BD,19),14),\"PREÇO MÉDIO DE ORÇAMENTOS\")))","v":"SINAPI 07-2022"},1.31,{"$f":"ROUND(J27*(1+BDI),2)","v":1.6},null,"COMPOSIÇÃO","BDI DE OBRA"]
["1.2.3","REMOÇÃO DE LUMINÁRIAS, DE FORMA MANUAL, COM REAPROVEITAMENTO. AF_12/2017","UN",180,{"$f":"K28","v":1.28},{"$f":"ROUND(D28*E28,2)","v":230.4},null,"97665",{"$f":"IF(M28=\"COMPOSIÇÃO\",LEFT(RIGHT(CAMINHO_DO_BD,19),14),IF(M28=\"INSUMO\",\"INSUMO \" & LEFT(RIGHT(CAMINHO_DO_BD,19),14),IF(M28=\"COMPOSIÇÃO PRÓPRIA\",\"COMPOSIÇÃO PRÓPRIA COM BASE NA \" & LEFT(RIGHT(CAMINHO_DO_BD,19),14),\"PREÇO MÉDIO DE ORÇAMENTOS\")))","v":"SINAPI 07-2022"},1.05,{"$f":"ROUND(J28*(1+BDI),2)","v":1.28},null,"COMPOSIÇÃO","BDI DE OBRA"]
["1.2.4","TRANSPORTE COM CAMINHÃO CARROCERIA 9T, EM VIA URBANA PAVIMENTADA, ADICIONAL PARA DMT EXCEDENTE A 30 KM (UNIDADE: TXKM). AF_07/2020","TXKM",276.7,{"$f":"K29","v":1.0900000000000001},{"$f":"ROUND(D29*E29,2)","v":301.60000000000002},null,"100948",{"$f":"IF(M29=\"COMPOSIÇÃO\",LEFT(RIGHT(CAMINHO_DO_BD,19),14),IF(M29=\"INSUMO\",\"INSUMO \" & LEFT(RIGHT(CAMINHO_DO_BD,19),14),IF(M29=\"COMPOSIÇÃO PRÓPRIA\",\"COMPOSIÇÃO PRÓPRIA COM BASE NA \" & LEFT(RIGHT(CAMINHO_DO_BD,19),14),\"PREÇO MÉDIO DE ORÇAMENTOS\")))","v":"SINAPI 07-2022"},0.89,{"$f":"ROUND(J29*(1+BDI),2)","v":1.0900000000000001},null,"COMPOSIÇÃO","BDI DE OBRA"]
["1.2.5","CARGA, MANOBRA E DESCARGA DE ENTULHO EM CAMINHÃO BASCULANTE 14 M³ - CARGA COM ESCAVADEIRA HIDRÁULICA  (CAÇAMBA DE 0,80 M³ / 111 HP) E DESCARGA LIVRE (UNIDADE: M3). AF_07/2020","M3",11.99,{"$f":"K30","v":10.67},{"$f":"ROUND(D30*E30,2)","v":127.93},null,"100983",{"$f":"IF(M30=\"COMPOSIÇÃO\",LEFT(RIGHT(CAMINHO_DO_BD,19),14),IF(M30=\"INSUMO\",\"INSUMO \" & LEFT(RIGHT(CAMINHO_DO_BD,19),14),IF(M30=\"COMPOSIÇÃO PRÓPRIA\",\"COMPOSIÇÃO PRÓPRIA COM BASE NA \" & LEFT(RIGHT(CAMINHO_DO_BD,19),14),\"PREÇO MÉDIO DE ORÇAMENTOS\")))","v":"SINAPI 07-2022"},8.7200000000000006,{"$f":"ROUND(J30*(1+BDI),2)","v":10.67},null,"COMPOSIÇÃO","BDI DE OBRA"]
[]
["1.3","FORRO DE PVC 25 CM DE LARGURA PARA OS BEIRAIS E ÁREAS DE CONVIVÊNCIA",null,null,null,{"$f":"SUBTOTAL(9,F33:F38)","v":118833.92999999998}]
["1.3.1","BLOCO A - FORRO EM RÉGUAS DE PVC, LISO, 25CM, JUNTASECA, PARA AMBIENTES RESIDENCIAIS, INCLUSIVE ESTRUTURA DE FIXAÇÃO","M²",178,{"$f":"K33","v":108.96},{"$f":"ROUND(D33*E33,2)","v":19394.88},null,"C_CIV0295",{"$f":"IF(M33=\"COMPOSIÇÃO\",LEFT(RIGHT(CAMINHO_DO_BD,19),14),IF(M33=\"INSUMO\",\"INSUMO \" & LEFT(RIGHT(CAMINHO_DO_BD,19),14),IF(M33=\"COMPOSIÇÃO PRÓPRIA\",\"COMPOSIÇÃO PRÓPRIA COM BASE NA \" & LEFT(RIGHT(CAMINHO_DO_BD,19),14),\"PREÇO MÉDIO DE ORÇAMENTOS\")))","v":"COMPOSIÇÃO PRÓPRIA COM BASE NA SINAPI 07-2022"},89.06,{"$f":"ROUND(J33*(1+BDI),2)","v":108.96},null,"COMPOSIÇÃO PRÓPRIA","BDI DE OBRA"]
["1.3.2","BLOCO B - FORRO EM RÉGUAS DE PVC, LISO, 25CM, JUNTASECA, PARA AMBIENTES RESIDENCIAIS, INCLUSIVE ESTRUTURA DE FIXAÇÃO","M²",362,{"$f":"K34","v":108.96},{"$f":"ROUND(D34*E34,2)","v":39443.519999999997},null,"C_CIV0295",{"$f":"IF(M34=\"COMPOSIÇÃO\",LEFT(RIGHT(CAMINHO_DO_BD,19),14),IF(M34=\"INSUMO\",\"INSUMO \" & LEFT(RIGHT(CAMINHO_DO_BD,19),14),IF(M34=\"COMPOSIÇÃO PRÓPRIA\",\"COMPOSIÇÃO PRÓPRIA COM BASE NA \" & LEFT(RIGHT(CAMINHO_DO_BD,19),14),\"PREÇO MÉDIO DE ORÇAMENTOS\")))","v":"COMPOSIÇÃO PRÓPRIA COM BASE NA SINAPI 07-2022"},89.06,{"$f":"ROUND(J34*(1+BDI),2)","v":108.96},null,"COMPOSIÇÃO PRÓPRIA","BDI DE OBRA"]
["1.3.3","BLOCO C - FORRO EM RÉGUAS DE PVC, LISO, 25CM, JUNTASECA, PARA AMBIENTES RESIDENCIAIS, INCLUSIVE ESTRUTURA DE FIXAÇÃO","M²",251,{"$f":"K35","v":108.96},{"$f":"ROUND(D35*E35,2)","v":27348.959999999999},null,"C_CIV0295",{"$f":"IF(M35=\"COMPOSIÇÃO\",LEFT(RIGHT(CAMINHO_DO_BD,19),14),IF(M35=\"INSUMO\",\"INSUMO \" & LEFT(RIGHT(CAMINHO_DO_BD,19),14),IF(M35=\"COMPOSIÇÃO PRÓPRIA\",\"COMPOSIÇÃO PRÓPRIA COM BASE NA \" & LEFT(RIGHT(CAMINHO_DO_BD,19),14),\"PREÇO MÉDIO DE ORÇAMENTOS\")))","v":"COMPOSIÇÃO PRÓPRIA COM BASE NA SINAPI 07-2022"},89.06,{"$f":"ROUND(J35*(1+BDI),2)","v":108.96},null,"COMPOSIÇÃO PRÓPRIA","BDI DE OBRA"]
["1.3.4","BLOCO D - FORRO EM RÉGUAS DE PVC, LISO, 25CM, JUNTASECA, PARA AMBIENTES RESIDENCIAIS, INCLUSIVE ESTRUTURA DE FIXAÇÃO","M²",161,{"$f":"K36","v":108.96},{"$f":"ROUND(D36*E36,2)","v":17542.560000000001},null,"C_CIV0295",{"$f":"IF(M36=\"COMPOSIÇÃO\",LEFT(RIGHT(CAMINHO_DO_BD,19),14),IF(M36=\"INSUMO\",\"INSUMO \" & LEFT(RIGHT(CAMINHO_DO_BD,19),14),IF(M36=\"COMPOSIÇÃO PRÓPRIA\",\"COMPOSIÇÃO PRÓPRIA COM BASE NA \" & LEFT(RIGHT(CAMINHO_DO_BD,19),14),\"PREÇO MÉDIO DE ORÇAMENTOS\")))","v":"COMPOSIÇÃO PRÓPRIA COM BASE NA SINAPI 07-2022"},89.06,{"$f":"ROUND(J36*(1+BDI),2)","v":108.96},null,"COMPOSIÇÃO PRÓPRIA","BDI DE OBRA"]
["1.3.5","ACABAMENTOS PARA FORRO (RODA-FORRO EM PERFIL METÁLICO E PLÁSTICO). AF_05/2017 TODOS OS BLOCOS","M",1045.26,{"$f":"K37","v":14.45},{"$f":"ROUND(D37*E37,2)","v":15104.01},null,"96121",{"$f":"IF(M37=\"COMPOSIÇÃO\",LEFT(RIGHT(CAMINHO_DO_BD,19),14),IF(M37=\"INSUMO\",\"INSUMO \" & LEFT(RIGHT(CAMINHO_DO_BD,19),14),IF(M37=\"COMPOSIÇÃO PRÓPRIA\",\"COMPOSIÇÃO PRÓPRIA COM BASE NA \" & LEFT(RIGHT(CAMINHO_DO_BD,19),14),\"PREÇO MÉDIO DE ORÇAMENTOS\")))","v":"SINAPI 07-2022"},11.81,{"$f":"ROUND(J37*(1+BDI),2)","v":14.45},null,"COMPOSIÇÃO","BDI DE OBRA"]
[]
["1.4","EXECUÇÃO DE PLATIBANDA DOS BLOCOS A, B, C, D E LATERAIS DAS PASSARELAS DE ACESSO ENTRE OS BLOCOS",null,null,null,{"$f":"SUBTOTAL(9,F40:F46)","v":219004.77000000002}]
["1.4.1","BLOCO A - PLATIBANDA EM CHAPA DE AÇO ESPESSURA 2,00mm, H=1600mm, DOBRA CARTOLA: 30X20X970mm, COM METALON DIM. 50X20X0,97mm NA FACE INFERIOR PARA ARREMATE COM O FORRO, FUNDO ANTICORROSIVO EM PRIMER EPÓXI NAS DUAS FACES","M2",121.45,{"$f":"K40","v":374.22},{"$f":"ROUND(D40*E40,2)","v":45449.02},null,"C_CIV0222",{"$f":"IF(M40=\"COMPOSIÇÃO\",LEFT(RIGHT(CAMINHO_DO_BD,19),14),IF(M40=\"INSUMO\",\"INSUMO \" & LEFT(RIGHT(CAMINHO_DO_BD,19),14),IF(M40=\"COMPOSIÇÃO PRÓPRIA\",\"COMPOSIÇÃO PRÓPRIA COM BASE NA \" & LEFT(RIGHT(CAMINHO_DO_BD,19),14),\"PREÇO MÉDIO DE ORÇAMENTOS\")))","v":"COMPOSIÇÃO PRÓPRIA COM BASE NA SINAPI 07-2022"},305.86,{"$f":"ROUND(J40*(1+BDI),2)","v":374.22},null,"COMPOSIÇÃO PRÓPRIA","BDI DE OBRA"]
["1.4.2","PASSARELA ENTRE BLOCO A E B PLATIBANDA EM CHAPA DE AÇO ESPESSURA 2,00mm, H=1600mm, DOBRA CARTOLA: 30X20X970mm, COM METALON DIM. 50X20X0,97mm NA FACE INFERIOR PARA ARREMATE COM O FORRO, FUNDO ANTICORROSIVO EM PRIMER EPÓXI NAS DUAS FACES","M2",17.600000000000001,{"$f":"K41","v":374.22},{"$f":"ROUND(D41*E41,2)","v":6586.27},null,"C_CIV0222","COMPOSIÇÃO PRÓPRIA COM BASE NA SINAPI 07-2022",305.86,374.22,null,"COMPOSIÇÃO PRÓPRIA","BDI DE OBRA"]
["1.4.3","BLOCO B - PLATIBANDA EM CHAPA DE AÇO ESPESSURA 2,00mm, H=1600mm, DOBRA CARTOLA: 30X20X970mm, COM METALON DIM. 50X20X0,97mm NA FACE INFERIOR PARA ARREMATE COM O FORRO, FUNDO ANTICORROSIVO EM PRIMER EPÓXI NAS DUAS FACES","M2",204.6,{"$f":"K42","v":374.22},{"$f":"ROUND(D42*E42,2)","v":76565.41},null,"C_CIV0222","COMPOSIÇÃO PRÓPRIA COM BASE NA SINAPI 07-2022",305.86,374.22,null,"COMPOSIÇÃO PRÓPRIA","BDI DE OBRA"]
["1.4.4","PASSARELA ENTRE BLOCO B E C PLATIBANDA EM CHAPA DE AÇO ESPESSURA 2,00mm, H=1600mm, DOBRA CARTOLA: 30X20X970mm, COM METALON DIM. 50X20X0,97mm NA FACE INFERIOR PARA ARREMATE COM O FORRO, FUNDO ANTICORROSIVO EM PRIMER EPÓXI NAS DUAS FACES","M2",18.8,374.22,7035.34,null,"C_CIV0222","COMPOSIÇÃO PRÓPRIA COM BASE NA SINAPI 07-2022",305.86,374.22,null,"COMPOSIÇÃO PRÓPRIA","BDI DE OBRA"]
["1.4.5","BLOCO C - PLATIBANDA EM CHAPA DE AÇO ESPESSURA 2,00mm, H=1600mm, DOBRA CARTOLA: 30X20X970mm, COM METALON DIM. 50X20X0,97mm NA FACE INFERIOR PARA ARREMATE COM O FORRO, FUNDO ANTICORROSIVO EM PRIMER EPÓXI NAS DUAS FACES","M2",96.24,{"$f":"K44","v":374.22},{"$f":"ROUND(D44*E44,2)","v":36014.93},null,"C_CIV0222","COMPOSIÇÃO PRÓPRIA COM BASE NA SINAPI 07-2022",305.86,374.22,null,"COMPOSIÇÃO PRÓPRIA","BDI DE OBRA"]
["1.4.6","BLOCO D - PLATIBANDA EM CHAPA DE AÇO ESPESSURA 2,00mm, H=1600mm, DOBRA CARTOLA: 30X20X970mm, COM METALON DIM. 50X20X0,97mm NA FACE INFERIOR PARA ARREMATE COM O FORRO, FUNDO ANTICORROSIVO EM PRIMER EPÓXI NAS DUAS FACES","M2",126.54,{"$f":"K45","v":374.22},{"$f":"ROUND(D45*E45,2)","v":47353.8},null,"C_CIV0222","COMPOSIÇÃO PRÓPRIA COM BASE NA SINAPI 07-2022",305.86,374.22,null,"COMPOSIÇÃO PRÓPRIA","BDI DE OBRA"]
[]
["1.5","ABERTURA DE CALHA E DESCIDAS VERTICAIS DOS BLOCO A, B, C E D",null,null,null,{"$f":"SUBTOTAL(9,F48:F56)","v":36735.68}]
["1.5.1","TELHADISTA COM ENCARGOS COMPLEMENTARES PARA FINS DE ABERTURA DE PONTOS DE DRENOS DE CALHA.","H",24,{"$f":"K48","v":26.83},{"$f":"ROUND(D48*E48,2)","v":643.91999999999996},null,"88323",{"$f":"IF(M48=\"COMPOSIÇÃO\",LEFT(RIGHT(CAMINHO_DO_BD,19),14),IF(M48=\"INSUMO\",\"INSUMO \" & LEFT(RIGHT(CAMINHO_DO_BD,19),14),IF(M48=\"COMPOSIÇÃO PRÓPRIA\",\"COMPOSIÇÃO PRÓPRIA COM BASE NA \" & LEFT(RIGHT(CAMINHO_DO_BD,19),14),\"PREÇO MÉDIO DE ORÇAMENTOS\")))","v":"SINAPI 07-2022"},21.93,{"$f":"ROUND(J48*(1+BDI),2)","v":26.83},null,"COMPOSIÇÃO","BDI DE OBRA"]
["1.5.2","FIXAÇÃO DE TUBOS VERTICAIS DE PPR DIÂMETROS MAIORES QUE 75 MM COM ABRAÇADEIRA METÁLICA RÍGIDA TIPO D 3\", FIXADA EM PERFILADO EM ALVENARIA. AF_05/2015","M",171.53,6.18,1060.06,null,"91175","SINAPI 07-2022",5.05,6.18,null,"COMPOSIÇÃO","BDI DE OBRA"]
["1.5.3","TUBO PVC, SERIE R, DN 100 MM, PARA ESGOTO OU AGUAS PLUVIAIS PREDIAIS (NBR 5688)                                                                                                                                                                                                                                                                                                                                                                                                                           ","M     ",114.38,{"$f":"K50","v":62.86},{"$f":"ROUND(D50*E50,2)","v":7189.93},null,9841,"INSUMO SINAPI 07-2022",51.38,62.86,null,"INSUMO","BDI DE OBRA"]
["1.5.4","TUBO PVC, SERIE R, DN 150 MM, PARA ESGOTO OU AGUAS PLUVIAIS PREDIAIS (NBR 5688)                                                                                                                                                                                                                                                                                                                                                                                                                           ","M     ",57.15,{"$f":"K51","v":127.77},{"$f":"ROUND(D51*E51,2)","v":7302.06},null,9840,"INSUMO SINAPI 07-2022",104.43,{"$f":"ROUND(J51*(1+BDI),2)","v":127.77},null,"INSUMO","BDI DE OBRA"]
["1.5.5","JOELHO 45 GRAUS, PVC, SERIE R, ÁGUA PLUVIAL, DN 100 MM, JUNTA ELÁSTICA, FORNECIDO E INSTALADO EM RAMAL DE ENCAMINHAMENTO. AF_06/2022","UN",71,61.08,4336.68,null,"89531","SINAPI 07-2022",49.92,61.08,null,"COMPOSIÇÃO","BDI DE OBRA"]
["1.5.6","JUNÇÃO SIMPLES DE PVC, 45 GRAUS, SÉRIE NORMAL, PARA ESGOTO PREDIAL, DN 100 MM, INSTALADA EM DRENO - FORNECIMENTO E INSTALAÇÃO. AF_07/2021","UN",20,73.150000000000006,1463,null,"102710","SINAPI 07-2022",59.79,73.150000000000006,null,"COMPOSIÇÃO","BDI DE OBRA"]
["1.5.7","JUNÇÃO SIMPLES DE PVC, 45 GRAUS, SÉRIE NORMAL, PARA ESGOTO PREDIAL, DN 100 MM, INSTALADA EM DRENO - FORNECIMENTO E INSTALAÇÃO. AF_07/2021","UN",4,{"$f":"K54","v":73.150000000000006},{"$f":"ROUND(D54*E54,2)","v":292.60000000000002},null,"102710","SINAPI 07-2022",59.79,73.150000000000006,null,"COMPOSIÇÃO","BDI DE OBRA"]
["1.5.8","CONDUTOR EM CHAPA DE CALHA DIMENSÕES 15X15 EXECUÇÃO BOCA TIPO FUNIL","M",109.5,{"$f":"K55","v":131.94},{"$f":"ROUND(D55*E55,2)","v":14447.43},null,"94228","SINAPI 07-2022",107.84,{"$f":"ROUND(J55*(1+BDI),2)","v":131.94},null,"COMPOSIÇÃO","BDI DE OBRA"]
[]
["1.6","MANUTENÇÃO/IMPERMEABILIZAÇÃO DE CALHAS DOS BLOCOS A, B, C E D",null,null,null,{"$f":"SUBTOTAL(9,F58:F62)","v":77831.44}]
["1.6.1","LIMPEZA DE SUPERFÍCIE COM VASSOURA A SECO. AF_04/2019","M2",367.32,{"$f":"K58","v":0.54},{"$f":"ROUND(D58*E58,2)","v":198.35},null,"99802",{"$f":"IF(M58=\"COMPOSIÇÃO\",LEFT(RIGHT(CAMINHO_DO_BD,19),14),IF(M58=\"INSUMO\",\"INSUMO \" & LEFT(RIGHT(CAMINHO_DO_BD,19),14),IF(M58=\"COMPOSIÇÃO PRÓPRIA\",\"COMPOSIÇÃO PRÓPRIA COM BASE NA \" & LEFT(RIGHT(CAMINHO_DO_BD,19),14),\"PREÇO MÉDIO DE ORÇAMENTOS\")))","v":"SINAPI 07-2022"},0.44,{"$f":"ROUND(J58*(1+BDI),2)","v":0.54},null,"COMPOSIÇÃO","BDI DE OBRA"]
["1.6.2","LIMPEZA DE SUPERFÍCIE COM JATO DE ALTA PRESSÃO. AF_04/2019","M2",367.32,{"$f":"K59","v":2.02},{"$f":"ROUND(D59*E59,2)","v":741.99},null,"99814",{"$f":"IF(M59=\"COMPOSIÇÃO\",LEFT(RIGHT(CAMINHO_DO_BD,19),14),IF(M59=\"INSUMO\",\"INSUMO \" & LEFT(RIGHT(CAMINHO_DO_BD,19),14),IF(M59=\"COMPOSIÇÃO PRÓPRIA\",\"COMPOSIÇÃO PRÓPRIA COM BASE NA \" & LEFT(RIGHT(CAMINHO_DO_BD,19),14),\"PREÇO MÉDIO DE ORÇAMENTOS\")))","v":"SINAPI 07-2022"},1.65,{"$f":"ROUND(J59*(1+BDI),2)","v":2.02},null,"COMPOSIÇÃO","BDI DE OBRA"]
["1.6.3","PINTURA COM TINTA ALQUÍDICA DE FUNDO (TIPO ZARCÃO) APLICADA A ROLO OU PINCEL SOBRE SUPERFÍCIES METÁLICAS (EXCETO PERFIL) EXECUTADO EM OBRA (POR DEMÃO). AF_01/2020","M2",367.32,{"$f":"K60","v":24.56},{"$f":"ROUND(D60*E60,2)","v":9021.3799999999992},null,"100722",{"$f":"IF(M60=\"COMPOSIÇÃO\",LEFT(RIGHT(CAMINHO_DO_BD,19),14),IF(M60=\"INSUMO\",\"INSUMO \" & LEFT(RIGHT(CAMINHO_DO_BD,19),14),IF(M60=\"COMPOSIÇÃO PRÓPRIA\",\"COMPOSIÇÃO PRÓPRIA COM BASE NA \" & LEFT(RIGHT(CAMINHO_DO_BD,19),14),\"PREÇO MÉDIO DE ORÇAMENTOS\")))","v":"SINAPI 07-2022"},20.07,{"$f":"ROUND(J60*(1+BDI),2)","v":24.56},null,"COMPOSIÇÃO","BDI DE OBRA"]
["1.6.4","IMPERMEABILIZAÇÃO DE SUPERFÍCIE COM MEMBRANA À BASE DE POLIURETANO, 2 DEMÃOS. AF_06/2018","M2",367.32,{"$f":"K61","v":184.77},{"$f":"ROUND(D61*E61,2)","v":67869.72},null,"98553",{"$f":"IF(M61=\"COMPOSIÇÃO\",LEFT(RIGHT(CAMINHO_DO_BD,19),14),IF(M61=\"INSUMO\",\"INSUMO \" & LEFT(RIGHT(CAMINHO_DO_BD,19),14),IF(M61=\"COMPOSIÇÃO PRÓPRIA\",\"COMPOSIÇÃO PRÓPRIA COM BASE NA \" & LEFT(RIGHT(CAMINHO_DO_BD,19),14),\"PREÇO MÉDIO DE ORÇAMENTOS\")))","v":"SINAPI 07-2022"},151.02000000000001,{"$f":"ROUND(J61*(1+BDI),2)","v":184.77},null,"COMPOSIÇÃO","BDI DE OBRA"]
[]
["1.7","SERVIÇOS COMPLEMENTARES",null,null,null,{"$f":"SUBTOTAL(9,F64:F65)","v":4488.28}]
["1.7.1","FORNECIMENTO E MONTAGEM DE LINHA DE VIDA HORIZONTAL EM CABO DE AÇO INOX DIÂM. 9,53 MM, PERFIL 6 X 25, INCLUSIVE ACESSÓRIOS DE FIXAÇÃO","UN",1,{"$f":"K64","v":4488.28},{"$f":"ROUND(D64*E64,2)","v":4488.28},null,"C_CIV0302",{"$f":"IF(M64=\"COMPOSIÇÃO\",LEFT(RIGHT(CAMINHO_DO_BD,19),14),IF(M64=\"INSUMO\",\"INSUMO \" & LEFT(RIGHT(CAMINHO_DO_BD,19),14),IF(M64=\"COMPOSIÇÃO PRÓPRIA\",\"COMPOSIÇÃO PRÓPRIA COM BASE NA \" & LEFT(RIGHT(CAMINHO_DO_BD,19),14),\"PREÇO MÉDIO DE ORÇAMENTOS\")))","v":"COMPOSIÇÃO PRÓPRIA COM BASE NA SINAPI 07-2022"},3668.39,{"$f":"ROUND(J64*(1+BDI),2)","v":4488.28},null,"COMPOSIÇÃO PRÓPRIA","BDI DE OBRA"]
[]
["1.8","PINTURA DA PLATIBANDA METÁLICA",null,null,null,{"$f":"SUBTOTAL(9,F67:F69)","v":19376.97}]
["1.8.1","TEXTURA ACRÍLICA, APLICAÇÃO MANUAL EM PAREDE, UMA DEMÃO. AF_09/2016","M2",585.23,{"$f":"K67","v":15.64},{"$f":"ROUND(D67*E67,2)","v":9153},null,"95305",{"$f":"IF(M67=\"COMPOSIÇÃO\",LEFT(RIGHT(CAMINHO_DO_BD,19),14),IF(M67=\"INSUMO\",\"INSUMO \" & LEFT(RIGHT(CAMINHO_DO_BD,19),14),IF(M67=\"COMPOSIÇÃO PRÓPRIA\",\"COMPOSIÇÃO PRÓPRIA COM BASE NA \" & LEFT(RIGHT(CAMINHO_DO_BD,19),14),\"PREÇO MÉDIO DE ORÇAMENTOS\")))","v":"SINAPI 07-2022"},12.78,{"$f":"ROUND(J67*(1+BDI),2)","v":15.64},null,"COMPOSIÇÃO","BDI DE OBRA"]
["1.8.2","APLICAÇÃO MANUAL DE PINTURA COM TINTA LÁTEX ACRÍLICA EM PAREDES, DUAS DEMÃOS. AF_06/2014","M2",585.23,{"$f":"K68","v":17.47},{"$f":"ROUND(D68*E68,2)","v":10223.969999999999},null,"88489",{"$f":"IF(M68=\"COMPOSIÇÃO\",LEFT(RIGHT(CAMINHO_DO_BD,19),14),IF(M68=\"INSUMO\",\"INSUMO \" & LEFT(RIGHT(CAMINHO_DO_BD,19),14),IF(M68=\"COMPOSIÇÃO PRÓPRIA\",\"COMPOSIÇÃO PRÓPRIA COM BASE NA \" & LEFT(RIGHT(CAMINHO_DO_BD,19),14),\"PREÇO MÉDIO DE ORÇAMENTOS\")))","v":"SINAPI 07-2022"},14.28,{"$f":"ROUND(J68*(1+BDI),2)","v":17.47},null,"COMPOSIÇÃO","BDI DE OBRA"]
[]
["1.9","ELÉTRICA",null,null,null,{"$f":"SUBTOTAL(9,F71:F72)","v":2138.4}]
["1.9.1","INSTALAÇÃO DE LUMINÁRIA TIPO CALHA, DE EMBUTIR, COM 2 LÂMPADAS TUBULARES","UN",180,{"$f":"K71","v":11.88},{"$f":"ROUND(D71*E71,2)","v":2138.4},null,"C_ELE0136.A",{"$f":"IF(M71=\"COMPOSIÇÃO\",LEFT(RIGHT(CAMINHO_DO_BD,19),14),IF(M71=\"INSUMO\",\"INSUMO \" & LEFT(RIGHT(CAMINHO_DO_BD,19),14),IF(M71=\"COMPOSIÇÃO PRÓPRIA\",\"COMPOSIÇÃO PRÓPRIA COM BASE NA \" & LEFT(RIGHT(CAMINHO_DO_BD,19),14),\"PREÇO MÉDIO DE ORÇAMENTOS\")))","v":"COMPOSIÇÃO PRÓPRIA COM BASE NA SINAPI 07-2022"},9.7100000000000009,{"$f":"ROUND(J71*(1+BDI),2)","v":11.88},null,"COMPOSIÇÃO PRÓPRIA","BDI DE OBRA"]
[]
["1.10","LIMPEZA CONTÍNUA DA OBRA",null,null,null,{"$f":"SUBTOTAL(9,F74:F75)","v":523.20000000000005}]
["1.10.1","LIMPEZA FINAL DE OBRA","H",24,{"$f":"K74","v":21.8},{"$f":"ROUND(D74*E74,2)","v":523.20000000000005},null,"88316",{"$f":"IF(M74=\"COMPOSIÇÃO\",LEFT(RIGHT(CAMINHO_DO_BD,19),14),IF(M74=\"INSUMO\",\"INSUMO \" & LEFT(RIGHT(CAMINHO_DO_BD,19),14),IF(M74=\"COMPOSIÇÃO PRÓPRIA\",\"COMPOSIÇÃO PRÓPRIA COM BASE NA \" & LEFT(RIGHT(CAMINHO_DO_BD,19),14),\"PREÇO MÉDIO DE ORÇAMENTOS\")))","v":"SINAPI 07-2022"},17.82,{"$f":"ROUND(J74*(1+BDI),2)","v":21.8},null,"COMPOSIÇÃO","BDI DE OBRA"]
[]
["VALOR TOTAL",null,null,null,null,{"$f":"SUBTOTAL(9,F13:F75)","v":532826.8899999999}]

{"sheet":"COMPOSIÇÃO DO BDI","index":3,"n_rows":29,"n_cols":4,"rows_kept":29,"cut":false,"hidden":false,"merged":[[1,0,4,2],[27,0,27,1],[28,0,42,2],[5,0,5,1],[6,0,6,1],[10,0,10,1],[18,0,18,1]]}
[]
["COMPOSIÇÃO DO BDI OBRAS DE ENGENHARIA        "]
[]
[]
[]
["DESCRIÇÃO",null,"%"]
["GRUPO A"]
["A1","(AC) ADMINISTRAÇÃO CENTRAL - VARIA CONFORME O PORTE DA NÚMERO DE OBRAS EM ANDAMENTO, VOLUME FINANCEIRO DAS OBRAS A INICIAREM, ETC,  EM CADA   EM CADA EMPRESA - (ACORDAO 2622/2013 - 3,0% A 5,5%)",{"$f":"ROUND(AVERAGE(3%,5.5%),4)","v":4.2500000000000003E-2}]
[null,"TOTAL DO GRUPO A  =",{"$f":"SUM(C8)","v":4.2500000000000003E-2}]
[]
["GRUPO B"]
["B1","(DF) DESPESAS FINANCEIRAS - (ACORDAO 2622/2013 - 0,59% A 1,39%)",{"$f":"ROUND(AVERAGE(0.59%,1.39%),4)","v":9.9000000000000008E-3},"***deve estar dentro da média dos ultimos 3 meses antecedentes ao contrato"]
["B2","(S)   SEGUROS - (ACORDAO 2622/2013 SEGURO + GARANTIA - 0,8% A 1,0%)",{"$f":"ROUND(AVERAGE(0.4%,0.5%),4)","v":4.4999999999999997E-3}]
["B2","(G)   GARANTIAS - (ACORDAO 2622/2013 SEGURO + GARANTIA - 0,8% A 1,0%)",{"$f":"ROUND(AVERAGE(0.4%,0.5%),4)","v":4.4999999999999997E-3}]
["B3","(R)   TAXA DE RISCO E IMPREVISTOS - (ACORDAO 2622/2013 0,97% A 1,27%)",{"$f":"ROUND(AVERAGE(0.97%,1.27%),4)","v":1.12E-2}]
["B4","(L)    LUCRO (ACORDAO 2622/2013 6,16% A 8,96%)",{"$f":"ROUND(AVERAGE(6.16%,8.96%),4)","v":7.5600000000000001E-2}]
[null,"TOTAL DO GRUPO B  =",{"$f":"SUM(C12:C16)","v":0.1057}]
[]
["GRUPO C"]
["C1","ISS - (ISS% SOBRE 40% DE MÃO DE OBRA)"]
["C2","%MÃO DE OBRA",0.4]
["C3","ISS DO MUNICÍPIO",0.05]
["C4","SUBTOTAL ISS (C2 X C3) =",{"$f":"C22*C21","v":2.0000000000000004E-2}]
["C5","PIS",6.4999999999999997E-3]
["C6","COFINS",0.03]
[null,"TOTAL DO GRUPO C  =",{"$f":"SUM(C23:C25)","v":5.6500000000000002E-2}]
[]
["TOTAL BDI (FORMULA ACORDAO 2369/2011)",null,{"$f":"ROUND((1+C8+C13+C15+C14)*(1+C12)*(1+C16)/(1-C26)-1,4)","v":0.2235}]
[" BDI = (1+AC+S+R+G)x(1+DF)X(1+L))  -1\n                                  1-I\nOnde: \nAC = taxa representativa das despesas de rateio da Administração Central;\nS = taxa representativa de Seguros;\nR = taxa representativa de Riscos;\nG = taxa representativa de Garantias;\nDF = taxa representativa das Despesas Financeiras;\nL = taxa representativa do Lucro;\nI = taxa representativa da incidência de Impostos. \n\n  Observação:\n  i)   Composição do BDI, intervalos admissíveis e Fórmula de cálculo nos termos do Acórdão 2622/2013 do TCU."]

{"sheet":"COMPOSIÇÃO DO BDI REDUZIDO","index":4,"n_rows":29,"n_cols":3,"rows_kept":29,"cut":false,"hidden":false,"merged":[[28,0,42,2],[1,0,4,2],[5,0,5,1],[6,0,6,1],[10,0,10,1],[18,0,18,1],[27,0,27,1]]}
[]
["COMPOSIÇÃO DO BDI REDUZIDO                       "]
[]
[]
[]
["DESCRIÇÃO",null,"%"]
["GRUPO A"]
["A1","(AC) ADMINISTRAÇÃO CENTRAL - VARIA CONFORME O PORTE DA NÚMERO DE OBRAS EM ANDAMENTO, VOLUME FINANCEIRO DAS OBRAS A INICIAREM, ETC,  EM CADA   EM CADA EMPRESA - (ACORDAO 2622/2013 - 1,5% A 4,49%)",{"$f":"ROUND(AVERAGE(1.5%,4.49%),4)","v":0.03}]
[null,"TOTAL DO GRUPO A  =",{"$f":"SUM(C8)","v":0.03}]
[]
["GRUPO B"]
["B1","(DF) DESPESAS FINANCEIRAS - (ACORDAO 2622/2013 - 0,85% A 1,11%)",{"$f":"ROUND(AVERAGE(0.85%,1.11%),4)","v":9.7999999999999997E-3}]
["B2","(S)   SEGUROS - (ACORDAO 2622/2013 SEGURO + GARANTIA - 0,3% A 0,82%)",{"$f":"ROUND(AVERAGE(0.3%/2,0.82%/2),4)","v":2.8E-3}]
["B2","(G)   GARANTIAS - (ACORDAO 2622/2013 SEGURO + GARANTIA - 0,3% A 0,82%)",{"$f":"ROUND(AVERAGE(0.3%/2,0.82%/2),4)","v":2.8E-3}]
["B3","(R)   TAXA DE RISCO E IMPREVISTOS - (ACORDAO 2622/2013 0,56% A 0,89%)",{"$f":"ROUND(AVERAGE(0.56%,0.89%),4)","v":7.3000000000000001E-3}]
["B4","(L)    LUCRO (ACORDAO 2622/2013 3,50% A 6,22%)",{"$f":"ROUND(AVERAGE(3.5%,6.22%),4)","v":4.8599999999999997E-2}]
[null,"TOTAL DO GRUPO B  =",{"$f":"SUM(C12:C16)","v":7.1300000000000002E-2}]
[]
["GRUPO C"]
["C1","ISS - (ISS% SOBRE 40% DE MÃO DE OBRA)"]
["C2","%MÃO DE OBRA",0]
["C3","ISS DO MUNICÍPIO",0.05]
["C4","SUBTOTAL ISS (C2 X C3) =",{"$f":"C22*C21","v":0}]
["C5","PIS",6.4999999999999997E-3]
["C6","COFINS",0.03]
[null,"TOTAL DO GRUPO C  =",{"$f":"SUM(C23:C25)","v":3.6499999999999998E-2}]
[]
["TOTAL BDI (ACORDAO 2369/2011)",null,{"$f":"ROUND((1+C8+C13+C15+C14)*(1+C12)*(1+C16)/(1-C26)-1,4)","v":0.14610000000000001}]
[" BDI = (1+AC+S+R+G)x(1+DF)X(1+L))  -1\n                                  1-I\nOnde: \nAC = taxa representativa das despesas de rateio da Administração Central;\nS = taxa representativa de Seguros;\nR = taxa representativa de Riscos;\nG = taxa representativa de Garantias;\nDF = taxa representativa das Despesas Financeiras;\nL = taxa representativa do Lucro;\nI = taxa representativa da incidência de Impostos. \n\n  Observação:\n  i)   Composição do BDI, intervalos admissíveis e Fórmula de cálculo nos termos do Acórdão 2622/2013 do TCU."]